Cogmind - Beta 17 @@@ ROGUE MODE // 2026.07.03 @ 22:39:36 // AFD2020/Player2 Player: Michael Result: Destroyed by as-24796 with Assembled Blade Performance ------------- Evolutions (0) 0 Regions Visited (4) 800 Robots Destroyed (17) 85 Value Destroyed (317) 317 Prototype IDs (2) 40 Alien Tech Used (0) 0 Bonus (-22) -22 TOTAL SCORE: 1220 Bonus ------- Follower Combat Kills 107 Friendly Fire -129 Cogmind --------- Core Integrity 0/250 Matter 264/300 Energy 100/100 System Corruption 2% Temperature Cool (0) Movement Core (250) Ox4 Location -9/Mines Parts ------- > --- POWER (1) -------- (None) > --- PROPULSION (2) --- (None) > --- UTILITY (2) ------ High-capacity Storage Unit Weight Redist. System > --- WEAPON (2) ------- (None) > --- INVENTORY (20) --- Wheel Wheel Wheel Medium Storage Unit Large Matter Pod (150) High-capacity Matter Pod (200) High-capacity Matter Pod (200) Compact Matter Pod (150) Structural Scanner Signal Interpreter Signal Interpreter Terrain Scanner Propulsion Shielding Propulsion Shielding Weapon Shielding Tractor Beam Beam Cannon Assault Rifle Peak State ------------ > --- POWER ------------ Ion Engine > --- PROPULSION ------- Light Treads Wheel > --- UTILITY ---------- High-capacity Storage Unit Weight Redist. System > --- WEAPON ----------- Beam Cannon Light Cannon > --- INVENTORY -------- Wheel Wheel Wheel Medium Storage Unit Large Matter Pod High-capacity Matter Pod High-capacity Matter Pod Compact Matter Pod Structural Scanner Signal Interpreter Signal Interpreter Terrain Scanner Propulsion Shielding Propulsion Shielding Weapon Shielding Tractor Beam Assault Rifle Grenade Launcher [Rating: 10] Favorites ----------- Power Ion Engine Engine Ion Engine Propulsion Aluminum Leg Treads Light Treads Leg Aluminum Leg Wheel Wheel Utility High-capacity Storage Unit Device Tractor Beam Storage High-capacity Storage Unit Protection Propulsion Shielding Weapon Beam Cannon Energy Gun EM Pulse Gun Energy Cannon Beam Cannon Ballistic Gun Light Assault Rifle Ballistic Cannon Light Cannon Launcher Grenade Launcher Build | -11 -10 -10 -10 -9 ------- Run | Yrd Mat Min Exi Min Slots Evolved . | . . . . . Power . | . . . . . Propulsion . | . . . . . Utility . | . . . . . Weapon . | . . . . . Parts Attached 19 | 5 13 . . 1 Power 1 | . 1 . . . Engine 1 | . 1 . . . Core . | . . . . . Reactor . | . . . . . Propulsion 4 | 2 2 . . . Treads 1 | . 1 . . . Leg 2 | 2 . . . . Wheel 1 | . 1 . . . Hover . | . . . . . Flight . | . . . . . Utility 7 | 1 6 . . . Device 3 | . 3 . . . Storage 3 | 1 2 . . . Processor . | . . . . . Hackware . | . . . . . Protection 1 | . 1 . . . Artifact . | . . . . . Weapon 7 | 2 4 . . 1 Energy Gun 3 | 2 1 . . . Energy Cannon 1 | . 1 . . . Ballistic Gun 1 | . . . . 1 Ballistic Cannon 1 | . 1 . . . Launcher 1 | . 1 . . . Special Weapon . | . . . . . Impact Weapon . | . . . . . Slashing Weapon . | . . . . . Piercing Weapon . | . . . . . Special Melee Weapon . | . . . . . Unidentified Prototypes . | . . . . . Parts Lost 6 | . . . . 6 Power 1 | . . . . 1 Propulsion 2 | . . . . 2 Utility . | . . . . . Weapon 3 | . . . . 3 Highest Loss Streak 6 | . . . . 6 To Critical Strikes . | . . . . . Average Backups 12 | 2 6 17 19 18 Power . | . . . . . Propulsion 2 | 2 1 3 3 3 Utility 7 | . 2 12 13 13 Weapon 2 | . 2 2 3 2 Tool/Special . | . . . . . Unused Backups 17 | . 4 . . 13 Power . | . . . . . Propulsion 5 | . 2 . . 3 Utility 10 | . 1 . . 9 Weapon 2 | . 1 . . 1 Tool/Special . | . . . . . Average Slot Usage (%) 96 | . 92 100 100 100 Engine 13 | . 13 14 14 14 Treads 9 | . 3 14 14 14 Leg 9 | . 20 . . . Wheel 9 | . 3 14 14 14 Device 10 | . 6 14 14 14 Storage 14 | . 14 14 14 14 Energy Gun 5 | . 11 . . . Energy Cannon 13 | . 12 14 14 10 Ballistic Cannon 8 | . 2 14 14 10 Peak Build Rating 10 | 5 9 10 10 10 Average Rating 7 | 3 6 8 10 9 On Entrance 6 | . 5 8 10 10 Avg Prop Armor Cover (%) 11 | . 11 11 11 11 Naked Turns . | . . . . . Heaviest Build 52 | 9 52 52 51 51 Greatest Support 20 | 20 20 16 16 16 Greatest Overweight (x) 5 | . 5 5 3 3 Average Overweight (x) 3 | . 2 4 3 3 Largest Inventory Capacity 20 | 8 20 20 20 20 Average Capacity 18 | 7 18 20 20 20 Most Carried 19 | 4 14 19 19 19 Average Carried 12 | 3 6 17 19 18 Final Capacity 20 | 8 20 20 20 20 Final Carried 19 | 4 14 19 19 18 Class Distribution -------------------- 100% | Mutant Dominant Class ---------------- Mutant | -10/Materials Mutant | -10/Mines Mutant | -10/Exiles Mutant | -9/Mines Resources | -11 -10 -10 -10 -9 ----------- Run | Yrd Mat Min Exi Min Matter Collected 613 | 217 351 45 . . Remotely 88 | . 68 20 . . Salvage Created 352 | . 294 35 . 23 Parts 20 | . 14 6 . . Haulers Intercepted 1 | . 1 . . . Recyclers Shooed 2 | . 2 . . . Parts Field Recycled . | . . . . . Retrieved Matter . | . . . . . Parts Self-Destructed . | . . . . . Prevented . | . . . . . Parts Restored . | . . . . . Kills | -11 -10 -10 -10 -9 ------- Run | Yrd Mat Min Exi Min Combat Hostiles Destroyed 17 | . 10 3 . 4 Cannons 5 | . 1 3 . 1 AOE 12 | . 9 . . 3 Classes Destroyed 7 | . 6 . . 1 Worker 1 | . 1 . . . Builder 1 | . 1 . . . Hauler 1 | . 1 . . . Watcher 1 | . 1 . . . Swarmer 8 | . 5 3 . . Grunt 5 | . 5 . . . Assembled 4 | . . . . 4 Best Kill Streak 5 | . 5 3 . 4 Combat Bots Only 4 | . 4 3 . 4 Max Kills in Single Turn 4 | . 4 1 . 3 Gunslinging . | . . . . . Exploded 3 | . 3 . . 3 Melee . | . . . . . Uniques/NPCs Destroyed . | . . . . . Combat | -11 -10 -10 -10 -9 -------- Run | Yrd Mat Min Exi Min Hostile Shots Fired 78 | . 32 11 . 35 Missed 24 | . 15 5 . 4 Hits 54 | . 17 6 . 31 Melee 9 | . . . . 9 Projectile 45 | . 17 6 . 22 Critical Strikes 1 | . . . . 1 Damage Taken 869 | . 186 48 . 635 Core 191 | . 33 18 . 140 Absorbed by Shields . | . . . . . Core Remaining (%) 100 | 100 . . . . Volleys Fired 33 | . 20 8 . 5 Largest 2 | . 2 2 . 2 Hottest 100 | . 100 90 . 50 Shots Fired 55 | . 31 16 . 8 Gun 12 | . 9 . . 3 Cannon 32 | . 13 16 . 3 Launcher 11 | . 9 . . 2 Special . | . . . . . Kinetic 16 | . 2 8 . 6 Thermal 19 | . 11 8 . . Explosive 11 | . 9 . . 2 Electromagnetic 9 | . 9 . . . Robot Hit Streak 4 | . 3 4 . 2 Robot Miss Streak 3 | . 2 3 . 3 Penetration Max . | . . . . . Secondary Targets . | . . . . . Shots Hit Robots 25 | . 15 7 . 3 Core Hits 31 | . 18 3 . 10 Critical Kills . | . . . . . Critical Parts Destroyed . | . . . . . Critical Strikes 2 | . 1 1 . . Blast 2 | . 1 1 . . Melee Attacks . | . . . . . Impact . | . . . . . Slashing . | . . . . . Piercing . | . . . . . Sneak Attacks . | . . . . . Combat Hostiles . | . . . . . Follow-up Attacks . | . . . . . Damage Inflicted 1322 | . 890 117 . 315 Guns 71 | . 51 . . 20 Cannons 316 | . 159 117 . 40 Explosions 935 | . 680 . . 255 Melee . | . . . . . Ramming . | . . . . . Kinetic 162 | . 20 82 . 60 Thermal 174 | . 139 35 . . Explosive 922 | . 667 . . 255 Electromagnetic 64 | . 64 . . . Impact . | . . . . . Slashing . | . . . . . Piercing . | . . . . . Highest Corruption 2 | . . . . 2 Average Corruption 2 | . . . . 2 Corruption Purged . | . . . . . Corruption Blocked . | . . . . . Overload Shots . | . . . . . Overflow Damage 43 | . 43 . . . Projectiles 9 | . 9 . . . Explosions 34 | . 34 . . . Melee . | . . . . . Knockbacks 2 | . . 2 . . Impact . | . . . . . Kinetic 2 | . . 2 . . Secondary . | . . . . . Self-Inflicted Damage 80 | . 43 . . 37 Shots 3 | . 2 . . 1 Rammed . | . . . . . Targets Rammed . | . . . . . Kicked . | . . . . . Crushed . | . . . . . Highest Temperature 130 | . 78 130 . 10 Average Temperature 37 | . 29 53 . 7 Received Heat Transfer 24 | . 24 . . . Siege Activations . | . . . . . Martial Activations . | . . . . . Shielding Activations . | . . . . . Robots Disrupted . | . . . . . Combat Hostiles . | . . . . . Robots Corrupted . | . . . . . Combat Hostiles . | . . . . . Parts Fried . | . . . . . Impact Corruptions . | . . . . . Robots Melted . | . . . . . Combat Hostiles . | . . . . . Parts Melted . | . . . . . Heat Transferred 370 | . 296 74 . . Parts Sabotaged . | . . . . . Parts Stolen . | . . . . . Parts Stripped . | . . . . . Power Chain Reactions . | . . . . . Alert | -11 -10 -10 -10 -9 ------- Run | Yrd Mat Min Exi Min Maximum Alert Level 1 | . 1 . . . Low Security (%) 63 | 100 25 100 . 100 Level 1 36 | . 74 . . . Level 2 . | . . . . . Level 3 . | . . . . . Level 4 . | . . . . . Level 5 . | . . . . . High Security . | . . . . . Max Security . | . . . . . Peak Influence 307 | . 307 90 . 11 Initial 90 | . . 90 . . Average 120 | . 224 19 . 4 Influence Increases 746 | . 630 95 . 21 Destroy 0b10 Robot/C 360 | . 300 60 . . Destroy 0b10 Robot/NC 40 | . 40 . . . Destroy Leader 76 | . 66 10 . . Allied During Kill 120 | . 95 25 . . Successful Hack 21 | . 21 . . . Disable Machine 45 | . 45 . . . Destroy Structure 69 | . 48 . . 21 Lose Combat Pursuer 15 | . 15 . . . Influence Decreases 746 | . 398 272 55 21 Entered New Map 197 | . . 142 55 . Time Decay 518 | . 378 130 . 10 Lost Part 30 | . 20 . . 10 Lost Ally 1 | . . . . 1 Squads Dispatched 4 | . 3 1 . . Investigation 2 | . 1 1 . . Extermination . | . . . . . Reinforcement 2 | . 2 . . . Assault . | . . . . . Garrison . | . . . . . Intercept . | . . . . . Searches Triggered . | . . . . . Construction Impeded . | . . . . . Haulers Reinforced . | . . . . . Active Scanning Responses . | . . . . . Cargo Convoy Interrupts . | . . . . . Stealth | -11 -10 -10 -10 -9 --------- Run | Yrd Mat Min Exi Min Distress Signals . | . . . . . Communications Jammed . | . . . . . Distress Signals . | . . . . . Times Spotted 40 | . 17 3 . 20 Peak Tracking Total 19 | . 6 3 . 19 Tactical Retreats 1 | . 1 . . . Traps | -11 -10 -10 -10 -9 ------- Run | Yrd Mat Min Exi Min Traps Triggered 1 | . 1 . . . Indirectly . | . . . . . Trap Hack Attempts . | . . . . . Triggered . | . . . . . Disarmed . | . . . . . Reprogrammed . | . . . . . Reused . | . . . . . Traps Extracted . | . . . . . Installed . | . . . . . Triggered . | . . . . . Machines | -11 -10 -10 -10 -9 ---------- Run | Yrd Mat Min Exi Min Machines Disabled 3 | . 3 . . . Max in Single Turn 1 | . 1 . . . Machines Repaired . | . . . . . Machines Dismantled . | . . . . . Machines Sabotaged . | . . . . . Overloaded Fab Kills . | . . . . . Hacking | -11 -10 -10 -10 -9 --------- Run | Yrd Mat Min Exi Min Machines Accessed 11 | . 9 1 1 . Terminals 7 | . 7 . . . Fabricators . | . . . . . Repair Stations . | . . . . . Recycling Units 2 | . 2 . . . Scanalyzers . | . . . . . Garrison Access . | . . . . . Total Hacks 24 | . 22 1 1 . Successful 13 | . 11 1 1 . Failed 11 | . 11 . . . Catastrophic . | . . . . . Database Lockouts . | . . . . . Manual 3 | . 3 . . . Terminals 18 | . 18 . . . Fabricators . | . . . . . Repair Stations . | . . . . . Recycling Units 4 | . 4 . . . Scanalyzers . | . . . . . Garrison Access . | . . . . . Terminal Hacks 10 | . 8 1 1 . Record 1 | . . . 1 . Prototype ID Bank 1 | . 1 . . . Open Door 1 | . . 1 . . Branch Access Points 1 | . 1 . . . Terminal Index 1 | . 1 . . . Locate Traps 2 | . 2 . . . Patrol Status 1 | . 1 . . . Hauler Manifests 1 | . 1 . . . Registered Components 1 | . 1 . . . Fabricator Hacks . | . . . . . Repair Station Hacks . | . . . . . Recycling Unit Hacks 2 | . 2 . . . Retrieve Components 2 | . 2 . . . Scanalyzer . | . . . . . Garrison Access Hacks . | . . . . . Unauthorized Hacks 1 | . 1 . . . Terminals 1 | . 1 . . . Assimilate 1 | . 1 . . . Fabricators . | . . . . . Repair Stations . | . . . . . Recycling Units . | . . . . . Scanalyzers . | . . . . . Garrison Access . | . . . . . Data Cores Recovered . | . . . . . Used . | . . . . . Hacking Detections 7 | . 7 . . . Full Trace Events . | . . . . . Feedback Events . | . . . . . Feedback Blocked . | . . . . . Robot Schematics Acquired . | . . . . . Robots Built . | . . . . . Authchips . | . . . . . Time . | . . . . . Total Robot Build Rating . | . . . . . Part Schematics Acquired . | . . . . . Parts Built . | . . . . . Authchips . | . . . . . Time . | . . . . . Total Part Build Rating . | . . . . . Part Studies Acquired . | . . . . . Parts Repaired . | . . . . . Time . | . . . . . Parts Recycled . | . . . . . Recycled Matter . | . . . . . Retrieved Matter . | . . . . . Retrieved Components 5 | . 5 . . . Parts Scanalyzed . | . . . . . Part Schematics Acquired . | . . . . . Parts Damaged . | . . . . . Bothacking | -11 -10 -10 -10 -9 ------------ Run | Yrd Mat Min Exi Min Used RIF Installer . | . . . . . Robots Hacked . | . . . . . Non-combat . | . . . . . Combat . | . . . . . Robot Hacks Applied . | . . . . . Relay Couplers Released . | . . . . . Fabnet Peak Effective % . | . . . . . Robots Rewired . | . . . . . Allies Hacked . | . . . . . Hacks Repelled . | . . . . . Allies | -11 -10 -10 -10 -9 -------- Run | Yrd Mat Min Exi Min Total Allies 5 | . 2 2 . 1 Largest Group 4 | . 2 4 4 3 Highest-Rated Group 111 | . 67 111 111 100 Highest-Rated Ally 59 | . 57 59 59 59 Total Orders . | . . . . . Ally Attacks 41 | . 34 . . 7 Total Damage 514 | . 444 . . 70 Kills 10 | . 9 . . 1 Allies Corrupted . | . . . . . Allies Melted . | . . . . . Intel | -11 -10 -10 -10 -9 ------- Run | Yrd Mat Min Exi Min Active Infowar (turns) 248 | . 248 . . . Structural 248 | . 248 . . . Robot Analysis Total . | . . . . . Derelict Logs Recovered 2 | . . 1 . 1 Drone Launches . | . . . . . Drone Recoveries . | . . . . . Exploration | -11 -10 -10 -10 -9 ------------- Run | Yrd Mat Min Exi Min Turns Passed 2094 | 49 940 874 204 27 Spaces Moved 1146 | 37 421 549 131 8 Core 9 | 9 . . . . Treads . | . . . . . Legs 293 | 28 265 . . . Wheels 844 | . 156 549 131 8 Hover . | . . . . . Flight . | . . . . . Fastest Speed 50 | 50 95 125 125 125 Average Speed 163 | 102 198 151 125 125 Slowest Speed 260 | 120 260 155 125 125 Overloaded Moves . | . . . . . Propulsion Burnouts . | . . . . . Robots Hopped . | . . . . . Potential Cave-ins . | . . . . . Cave-ins Triggered . | . . . . . Exploration Rate (%) 45 | 3 74 97 48 7 Regions Visited 4 Branch Regions 3 Pre-discovered Areas 1 | . . . 1 . Known Exits Taken 1 | . 1 . . . Unknown Exits Taken 3 | 1 . 1 1 . Scrap Searched 1 | . . 1 . . Spaces Dug 4 | . 4 . . . Terrain Destroyed 70 | . 49 . . 21 Melee . | . . . . . Projectile . | . . . . . AOE 70 | . 49 . . 21 Terrain Rammed . | . . . . . Walls Destroyed . | . . . . . Machines Disabled . | . . . . . Actions | -11 -10 -10 -10 -9 --------- Run | Yrd Mat Min Exi Min Total 1300 | 45 492 576 171 16 Wait 56 | . 1 14 41 . Move 1142 | 36 420 548 130 8 Hop . | . . . . . Pick Up 22 | 4 13 5 . . Fast Attach 13 | 5 8 . . . Attach 1 | . . . . 1 Detach 5 | . 5 . . . Swap 17 | . 14 1 . 2 Drop 11 | . 11 . . . Fire 33 | . 20 8 . 5 Melee . | . . . . . Ram . | . . . . . Kick . | . . . . . Crush . | . . . . . Escape Stasis . | . . . . . Rewire . | . . . . . Trap . | . . . . . Miscellaneous . | . . . . . Route ------- -11/Scrapyard -10/Materials (discovered 4 exits: *Mat x2 / *Min x2) -10/Mines (discovered 4 exits: *Mat x2 / *Exi / [*Sub]) -10/Exiles -9/Mines History --------- Turn | Location | Event 8 | -11/Scrapyard | Discovered new exit (range 15) 50 | -11/Scrapyard | Entered Materials 53 | -10/Materials | Discovered new exit (range 7) 294 | -10/Materials | Identified exit to Mines 304 | -10/Materials | Build established: Mutant 489 | -10/Materials | Discovered new exit (range 8) 826 | -10/Materials | Discovered new exit (range 16) 990 | -10/Materials | Entered Mines 990 | -10/Mines | Accompanied by 1 ally 1018 | -10/Mines | Identified exit to Materials 1096 | -10/Mines | Discovered exit to Materials (range 2) 1220 | -10/Mines | Met a Derelict shopkeep closing up shop 1295 | -10/Mines | Discovered new exit (range 7) 1845 | -10/Mines | Deemed a non-threat by the Exiles lab entrance 1845 | -10/Mines | Discovered new exit (range 5) 1864 | -10/Mines | Entered Exiles 1864 | -10/Exiles | Accompanied by 3 allies 1894 | -10/Exiles | Led the pair of lost Derelicts to a safe place 1896 | -10/Exiles | Met 8R-AWN 1917 | -10/Exiles | Met EX-HEX 1966 | -10/Exiles | Met EX-DEC 1971 | -10/Exiles | Learned location of Zion (-6) 2012 | -10/Exiles | Discovered new exit (range 12) 2068 | -10/Exiles | Entered Mines 2068 | -9/Mines | Accompanied by 1 ally 2069 | -9/Mines | Assembled infested the area 2070 | -9/Mines | Learned Materials security intel 2071 | -9/Mines | Received a Mining Laser from a helpful Derelict 2075 | -9/Mines | Assisted by a Guerilla fighting off Assembled 2090 | -9/Mines | Core integrity fell below 50% 2094 | -9/Mines | Core integrity fell below 20% 2095 | -9/Mines | Destroyed by as-24796 with Assembled Blade Last Messages --------------- 02086_ HV Slug penetrates as-25225. 02086_ as-25225 suffers critical hit (Destroy). 02086_ as-25225 destroyed. 02086_ as-12444 destroyed. 02088_ I3-10P(g) destroyed. 02089_ TF-GO3(h) destroyed. 02090_ as-92513 destroyed. 02092_ The unstable cave ceiling collapses. 02092_ Ion Engine destroyed. 02092_ as-01887 sneak attacks. 02092_ Technician 1a system corrupted by crushing effect. 02092_ Technician 1a destroyed. 02093_ as-01887 knocked back. 02093_ Lgt. Treads destroyed. 02094_ Wheel destroyed. 02094_ Lgt. Assault Rifle destroyed. 02094_ System corrupted by crushing effect (+1). 02095_ Lgt. Cannon destroyed. Map ----- +----------------------------------------------------+ | ??????????????????????????????????? | | ??????????????????????????????????? | | ??????????????????????????????????? | | ??????????????????????????????????? | | ??????????????????????????????????? | | ??????????????????????????????????? | | ??????????????????????????????????? | | ??????????????????????????????????? | | ??????????????????????????????????? | | ??????????????????????????????????? | | ????????????????????????? ??????? | | ????????????????????????? ??????? | | ????????????????????????? ??????? | | ????????????????????????? ??????? | | ??????????????????##???## ##?????? | | ??????????????????? ???# ##?????? | | ???????????????????# ??# #?????? | | ??????????????????## #?# #?????? | | ?????????????????## ;## #?????? | | ???????????????### #?????? | | ???????????????? ??????? | | ?????????????????# a ??????? | | ????????????????## %a ##?????? | | ????????????????#